{"text_format":"1","workbook":"xlsx","n_sheets":16,"sheets":["capa","Projetos 2020 ","Projetos 2020 por categoria","recursos proj individuais"," Resumo projetos","Gráficos projetos ","volume e producao qualificada","grupos de pesquisa","bolsista produtividade","alunos em proj IC","IC Sem bolsa","Demanda IC 2020","Bolsas IC 2020","Bolsistas por UU","Histórico IC","Gráficos IC"],"not_rendered":{"charts":8,"images":1,"macros":1,"external_links":0,"defined_names":0,"comments":0,"pivot_tables":0},"unopened":[],"bounds":{"document_bytes":16777216,"sheet_cells":100000,"rows_first":2000,"rows_last":500,"rows_between":2000,"halvings":0,"cell_chars":16384,"cell_head_chars":4096},"cells_cut":0,"cells_raw":0,"read":"whole","date_system":"1900"}

{"sheet":"capa","index":0,"n_rows":0,"n_cols":0,"rows_kept":0,"cut":false,"hidden":false,"merged":[[26,18,42,18],[43,18,46,18],[47,18,57,18],[58,18,59,18],[0,0,3,16],[4,18,7,18],[8,18,10,18],[11,18,19,18],[20,18,25,18]]}

{"sheet":"Projetos 2020 ","index":1,"n_rows":130,"n_cols":8,"rows_kept":130,"cut":false,"hidden":false,"merged":[[6,6,6,8],[7,7,7,8],[12,15,12,21],[13,1,13,5],[14,1,15,1],[14,2,14,4],[14,6,14,7],[14,8,14,9],[4,1,4,8],[5,1,5,7],[34,1,34,5],[35,1,36,1],[35,2,35,4],[35,6,35,7],[35,8,35,9],[50,1,50,6],[51,1,52,1],[51,2,52,3],[51,4,51,6],[53,1,54,1],[53,2,53,3],[54,2,54,3],[55,1,60,1],[55,2,55,3],[56,2,56,3],[57,2,57,3],[58,2,58,3],[59,2,59,3],[60,2,60,3],[61,1,71,1],[61,2,61,3],[62,2,62,3],[62,4,63,4],[62,5,63,5],[62,7,63,7],[63,2,63,3],[64,2,64,3],[64,4,66,4],[64,5,66,5],[64,7,66,7],[65,2,65,3],[66,2,66,3],[67,2,67,3],[68,2,68,3],[69,2,69,3],[70,2,70,3],[71,2,71,3],[79,7,80,7],[80,2,80,3],[81,2,81,3],[82,2,82,3],[83,2,83,3],[84,2,84,3],[85,2,85,3],[72,1,75,1],[72,2,72,3],[73,2,73,3],[74,2,74,3],[75,2,75,3],[76,1,77,1],[76,2,76,3],[77,2,77,3],[78,1,97,1],[78,2,78,3],[79,2,79,3],[86,2,86,3],[93,2,93,3],[94,2,94,3],[95,2,95,3],[96,2,96,3],[97,2,97,3],[86,4,87,4],[86,5,87,5],[87,2,87,3],[88,2,88,3],[89,2,89,3],[90,2,90,3],[91,2,91,3],[92,2,92,3],[79,4,80,4],[79,5,80,5],[98,1,100,1],[98,2,98,3],[99,2,99,3],[100,2,100,3],[101,1,102,1],[101,2,101,3],[101,4,102,4],[101,5,102,5],[101,7,102,7],[102,2,102,3],[103,1,105,1],[103,2,103,3],[104,2,104,3],[105,2,105,3],[106,1,107,1],[106,2,106,3],[107,2,107,3],[108,1,109,1],[108,2,108,3],[109,2,109,3],[110,1,113,1],[110,2,110,3],[111,2,111,3],[112,2,112,3],[113,2,113,3],[114,1,115,1],[114,2,114,3],[115,2,115,3],[116,1,120,1],[116,2,116,3],[125,1,125,3],[127,1,127,6],[116,4,117,4],[116,5,117,5],[116,7,117,7],[117,2,117,3],[118,2,118,3],[119,2,119,3],[120,2,120,3],[121,1,124,1],[121,2,121,3],[122,2,122,3],[123,2,123,3],[124,2,124,3]]}
[]
[]
[]
[]
[null,"Indicadores da Pró-reitoria de Pesquisa, Pós-graduação e Inovação "]
[null,"Projetos de pesquisa em execução e finalizados"]
[null,null,null,null,null,null,"Histórico de Projetos de Pesquisa"]
[null,null,null,null,null,null,null,"Página Inicial"]
[]
[]
[null,"Objetivo: Informar o número de Projetos de Pesquisa em execução e finalizados no ano de 2020"]
[]
[]
[null,"Quadro - Quantidade de projetos de pesquisa em execução e finalizados - por Unidade Universitária "]
[null,"Unidades Universitárias","2020*"]
[null,null,"1 semestre em execução","2 semestre em execução","Finalizados em 2020"]
[null,"Amambai",15,13,4]
[null,"Aquidauana",29,26,11]
[null,"Campo Grande",56,51,15]
[null,"Cassilândia",22,23,2]
[null,"Coxim",3,3,"-"]
[null,"Dourados",99,95,24]
[null,"Glória de Dourados",3,2,1]
[null,"Ivinhema",2,2,1]
[null,"Jardim ",9,9,2]
[null,"Maracaju",1,3,"-"]
[null,"Mundo Novo",5,5,2]
[null,"Naviraí",19,17,3]
[null,"Nova Andradina",10,9,1]
[null,"Paranaíba",32,32,4]
[null,"Ponta Porã",10,10,1]
[null,"Total",{"$f":"SUM(C17:C31)","v":315},{"$f":"SUM(D17:D31)","v":300},{"$f":"SUM(E17:E31)","v":71}]
[null,"*Refere-se ao ano de execução ou finalização dos projetos cadastrados na Divisão de Pesquisa "]
[]
[null,"Quadro - Quantidade de projetos de pesquisa em execução e finalizados - por Área de conhecimento "]
[null,"Áreas de Conhecimento","2020*"]
[null,null,"1 semestre em execução","2 semestre em execução","Finalizados "]
[null,"Ciências Exatas e da Terra",57,53,14]
[null,"Ciências Biológicas ",19,18,5]
[null,"Engenharias",10,8,3]
[null,"Ciências da Saúde",20,18,9]
[null,"Ciências Agrárias",52,48,14]
[null,"Ciências Sociais Aplicadas",43,45,5]
[null,"Ciências Humanas",75,74,13]
[null,"Linguística, Letras e Artes",39,36,9]
[null,"Total",315,{"$f":"SUM(D38:D45)","v":300},71]
[null,"*Refere-se ao ano de execução ou finalização dos projetos cadastrados na Divisão de Pesquisa "]
[]
[]
[]
[null,"Quadro - Quantidade de projetos de pesquisa em execução e finalizados - por Curso/CEPEXs"]
[null,"Unidade Universitária ","Curso/Centro*",null,"2020**"]
[null,null,null,null,"1º semestre em execução","2º semestre em execução","Finalizados 1º sem ","Finalizados 2º sem "]
[null,"Amambai","Ciências Sociais",null,5,4,1,1]
[null,null,"História",null,10,9,1,1]
[null,"Aquidauana","Agronomia",null,10,9,3,1]
[null,null,"Engenharia Florestal",null,4,3,3,1]
[null,null,"Zootecnia",null,15,14,1,2]
[null,null,"CECA - Centro de Excelência em Ciência Animal do Cerrado e Pantanal",null,"-",null,"-"]
[null,null,"CEMAP - Centro de Estudos em Meio Ambiente, Áreas Protegidas e Desenvolvimento Sustentável ",null,"-",null,"-"]
[null,null,"CEPROV - Centro de Estudos em Produção Vegetal",null,"-",null,"-"]
[null,"Campo Grande\n","Artes Cênicas",null,5,4,"-",1]
[null,null,"Geografia Bacharel",null,13,12,1,1]
[null,null,"Geografia Licenciatura"]
[null,null,"Letras Bacharel",null,19,19,4]
[null,null,"Letras Port./Inglês",null,null,null,"-"]
[null,null,"Letras Port./Esp.",null,null,null,"-"]
[null,null,"Medicina",null,11,8,4,3]
[null,null,"Pedagogia",null,6,6,"-"]
[null,null,"Turismo",null,2,2,1]
[null,null,"Mestrado Letras",null,"-",null,"-"]
[null,null,"CELMI - Centro de Pesquisa, Ensino e Extensão em Educação, Linguagem, Memória e Identidade",null,"-",null,"-"]
[null,"Cassilândia","Agronomia",null,17,17,1]
[null,null,"Letras ",null,1,2,"-"]
[null,null,"Matemática",null,4,4,1]
[null,null,"CEDESU-Centro de Desenvolvimento Sustentável do Bolsão sulmatogrossense",null,"-",null,"-"]
[null,"Coxim","Ciências Biológicas",null,1,1,"-"]
[null,null,"Gestão Ambiental",null,2,2,"-"]
[null,"Dourados","Ciências da Computação",null,6,4,2,1]
[null,null,"Ciências Biológicas Bacharel",null,10,10,2]
[null,null,"Ciências Biológicas Licenc.",null,null,null,"-"]
[null,null,"Direito",null,7,7,"-"]
[null,null,"Enfermagem",null,11,12,2]
[null,null,"Engenharia Ambiental",null,11,11,"-"]
[null,null,"Engenharia Física",null,10,9,2,1]
[null,null,"Física",null,4,3,1,1]
[null,null,"Letras Port./Inglês",null,13,12,4]
[null,null,"Letras  Port./ Espanhol",null,null,null,"-",1]
[null,null,"Matemática",null,4,4,"-"]
[null,null,"Pedagogia",null,8,8,2]
[null,null,"Química",null,8,8,2,2]
[null,null,"Química Industrial",null,"-",null,1]
[null,null,"Sistema De Informação",null,3,3,"-"]
[null,null,"Turismo",null,4,4,"-"]
[null,null,"CEPEMAT – Centro de Pesquisas em Materias",null,"-",null,"-"]
[null,null,"CEPES - Centro de Ensino, Pesquisa e Extensão em Educação em Saúde ",null,"-",null,"-"]
[null,null,"CEPEGRE - Centro de Estudos, Pesquisa e Extensão em Educação, Gênero, Raça e Etnia",null,"-",null,"-"]
[null,null,"CERNA - Centro de Estudos em Recursos Naturais",null,"-",null,"-"]
[null,"Glória de Dourados","Produção Sucroalcooleira",null,"-",null,"-"]
[null,null,"Tecnologia em Agroecologia",null,1,1,"-"]
[null,null,"Tecnologia em Produção",null,2,1,"-",1]
[null,"Ivinhema","Ciências Biológicas Bacharel",null,2,2,"-"]
[null,null,"Ciências Biológicas Licenc.",null,null,null,1]
[null,"Jardim","Geografia Licenciatura",null,6,6,"-"]
[null,null,"Letras ",null,3,3,1,1]
[null,null,null,null,null,null,"-"]
[null,"Maracaju","Administração",null,"-",2,"-"]
[null,null,"Pedagogia",null,1,1,"-"]
[null,"Mundo Novo","Ciências Biológicas Licenc.",null,3,2,"-",1]
[null,null,"Tecnologia Gestão Ambiental",null,2,3,1]
[null,"Naviraí","Química",null,9,9,1]
[null,null,"Engenharia De Alimentos",null,3,1,"-",2]
[null,null,"Direito",null,7,7,"-"]
[null,null,"CDTEQ - Centro de Desenvolvimento em Tecnologias Químicas",null,"-",null,"-"]
[null,"Nova Andradina","Matemática",null,7,6,1]
[null,null,"Computação",null,3,3,"-"]
[null,"Paranaíba","Ciências Sociais Bacharel.",null,8,8,"-",1]
[null,null,"Ciências Sociais Licenciatura",null,null,null,"-"]
[null,null,"Direito",null,15,15,3]
[null,null,"Pedagogia",null,9,9,"-"]
[null,null,"CEPEED - Centro de Pesquisa, Ensino e Extensão em Educação",null,"-",null,"-"]
[null,"Ponta Porã","Administração de Empresas",null,2,2,"-"]
[null,null,"Ciências Contábeis",null,3,3,1]
[null,null,"Ciências Econômicas",null,2,2,"-"]
[null,null,"Mestrado em Desenvolvimento Regional e de Sistemas Produtivos",null,3,3,{"$f":"SUM(G54:G124)","v":48}]
[null,"Total",null,null,{"$f":"SUM(E54:E125)","v":315},{"$f":"SUM(F54:F125)","v":300},48,{"$f":"SUM(H54:H125)","v":23}]
[null,"*Os docentes tem a opção de cadastrar seus projetos em cursos de graduação, pós-graduação ou em Centros de Pesquisa"]
[null,"**Refere-se ao ano de execução ou finalização dos projetos cadastrados na Divisão de Pesquisa "]
[]
[null,"Fonte: Divisão de Pesquisa, janeiro 2021"]

{"sheet":"Projetos 2020 por categoria","index":2,"n_rows":51,"n_cols":10,"rows_kept":51,"cut":false,"hidden":false,"merged":[[13,1,13,7],[14,1,15,1],[14,2,14,4],[14,5,14,7],[4,1,4,10],[5,1,5,9],[6,9,6,11],[7,11,7,12],[10,1,11,11],[14,8,14,10],[37,8,37,10],[34,1,34,5],[36,1,36,6],[37,1,38,1],[37,2,37,4],[37,5,37,7]]}
[]
[]
[]
[]
[null,"Indicadores da Pró-reitoria de Pesquisa, Pós-graduação e Inovação "]
[null,"Detalhamento por tipo de projetos de pesquisa"]
[null,null,null,null,null,null,null,null,null,"Página Inicial"]
[]
[]
[]
[null,"Objetivo: Informar a quantidade de Projetos de Pesquisa financiamentos e com cooperação internacional"]
[]
[]
[null,"Quadro - Quantidade de projetos de pesquisa financiados e projetos com cooperação internacional - por Unidade Universitária"]
[null,"Unidades Universitárias","2020*"]
[null,null,"Interinstitucional com financiamento","Institucional com financiamento","Cooperação internacional"]
[null,"Amambai","-","-","-"]
[null,"Aquidauana",6,3,1]
[null,"Campo Grande",3,3,"-"]
[null,"Cassilândia",3,"-","-"]
[null,"Coxim","-","-","-"]
[null,"Dourados",11,9,"-"]
[null,"Glória de Dourados","-","-","-"]
[null,"Ivinhema","-","-","-"]
[null,"Jardim ",null,2,"-"]
[null,"Maracaju","-","-","-"]
[null,"Mundo Novo",1,"-","-"]
[null,"Naviraí",1,1,"-"]
[null,"Nova Andradina","-","-","-"]
[null,"Paranaíba","-","-","-"]
[null,"Ponta Porã","-",1,"-"]
[null,"Total",{"$f":"SUM(C17:C31)","v":25},{"$f":"SUM(D17:D31)","v":19},{"$f":"SUM(E17:E31)","v":1}]
[null,"*Refere-se ao ano de cadastramento do projeto na Divisão de Pesquisa "]
[]
[]
[]
[null,"Quadro - Quantidade de projetos de pesquisa financiados e projetos com cooperação internacional - por área de conhecimento "]
[null,"Áreas de Conhecimento","2020*"]
[null,null,"Interinstitucional com financiamento","Institucional com financiamento","Cooperação internacional"]
[null,"Ciências Exatas e da Terra",2,3,"-"]
[null,"Ciências Biológicas ",3,3,"-"]
[null,"Engenharias",4,5,"-"]
[null,"Ciências da Saúde",1,2,"-"]
[null,"Ciências Agrárias",9,2,1]
[null,"Ciências Sociais Aplicadas","-",1,"-"]
[null,"Ciências Humanas",5,3,"-"]
[null,"Linguística, Letras e Artes",1,"-","-"]
[null,"Total",{"$f":"SUM(C40:C47)","v":25},{"$f":"SUM(D40:D47)","v":19},{"$f":"SUM(E40:E47)","v":1}]
[null,"*Refere-se ao ano de cadastramento do projeto na Divisão de Pesquisa "]
[]
[null,"Fonte: Divisão de Pesquisa, janeiro 2021"]

{"sheet":"recursos proj individuais","index":3,"n_rows":48,"n_cols":7,"rows_kept":48,"cut":false,"hidden":false,"merged":[[4,1,4,7],[5,1,5,7],[7,5,7,7],[9,1,9,5],[10,1,10,7],[12,1,12,6],[13,1,14,1],[13,2,13,6],[34,1,34,6],[35,1,36,1],[35,2,35,6]]}
[]
[]
[]
[]
[null,"Indicadores da Pró-reitoria de Pesquisa, Pós-graduação e Inovação "]
[null,"Volume de recursos financeiros captados por projetos de pesquisa individuais"]
[]
[null,null,null,null,null,"Página Inicial"]
[]
[]
[null,"Objetivo: Informar o volume de recursos financeiros captados por projetos de pesquisa individuais "]
[]
[null,"Quadro - Recursos financeiros referentes a projetos individuais - por Unidade Universitária"]
[null,"Unidades Universitárias","Ano de cadastro"]
[null,null,2016,2017,2018,2019,2020]
[null,"Amambai","-","-","-","-","-"]
[null,"Aquidauana",284852,33400,1620068.22,"-",1829324.9]
[null,"Campo Grande",58118,67927.100000000006,9809.1,"-",549328.80000000005]
[null,"Cassilândia",39600,"-",282250,"-",259312]
[null,"Coxim","-","-","-","-","-"]
[null,"Dourados",342500,472500.4,863160.4,39600,4360458.0599999996]
[null,"Glória de Dourados","-","-","-","-","-"]
[null,"Ivinhema","-","-","-","-","-"]
[null,"Jardim ","-","-",90000,43808.1,133808.1]
[null,"Maracaju","-","-","-","-","-"]
[null,"Mundo Novo","-","-","-","-",7872714.3399999999]
[null,"Naviraí",21000,"-",66300,"-",116300]
[null,"Nova Andradina","-","-","-","-","-"]
[null,"Paranaíba","-","-",22900,"-",22900]
[null,"Ponta Porã","-","-",35000,"-",35000]
[null,"Total",{"$f":"SUM(C16:C30)","v":746070},{"$f":"SUM(D16:D30)","v":573827.5},{"$f":"SUM(E16:E30)","v":2989487.72},{"$f":"SUM(F16:F30)","v":83408.100000000006},{"$f":"SUM(G16:G30)","v":15179146.199999999}]
[]
[]
[]
[null,"Quadro - Recursos financeiros referentes a projetos individuais - por área de conhecimento"]
[null,"Áreas de Conhecimento","Ano de cadastro*"]
[null,null,2016,2017,2018,2019,2020]
[null,"Ciências Exatas e da Terra",21000,130000,324900,83408.100000000006,1365563.1]
[null,"Ciências Biológicas ",24000,24000,256060,"-",118060]
[null,"Engenharias","-","-","-","-",3001702.66]
[null,"Ciências da Saúde","-",9809.1,39809.1,"-",778331.4]
[null,"Ciências Agrárias",324452,33400,1902318.22,"-",9361351.2400000002]
[null,"Ciências Sociais Aplicadas","-","-",35000,"-","-"]
[null,"Ciências Humanas",348118,348118.4,431400,"-",528310.4]
[null,"Linguística, Letras e Artes",28500,28500,"-","-",25827.4]
[null,"Total",{"$f":"SUM(C38:C45)","v":746070},{"$f":"SUM(D38:D45)","v":573827.5},{"$f":"SUM(E38:E45)","v":2989487.32},{"$f":"SUM(F38:F45)","v":83408.100000000006},15179146.199999999]
[]
[null,"Fonte: Divisão de Pesquisa, janeiro 2021"]

{"sheet":" Resumo projetos","index":4,"n_rows":30,"n_cols":8,"rows_kept":30,"cut":false,"hidden":false,"merged":[[22,1,22,3],[27,1,27,3],[4,1,4,8],[5,1,5,8],[6,7,6,8],[7,7,7,8],[16,1,16,3]]}
[]
[]
[]
[]
[null,"Indicadores da Pró-reitoria de Pesquisa, Pós-graduação e Inovação "]
[null,"Resumo dos dados sobre projetos de pesquisa "]
[null,null,null,null,null,null,null,"Gráficos"]
[null,null,null,null,null,null,null,"Página Inicial"]
[]
[null,"Objetivo: Apresentar a série histórica envolvendo dados dos projetos de pesquisa"]
[]
[null,"Quadro - Histórico do número de projetos de pesquisa - por categoria e ano de cadastro"]
[null,"Categoria ",2016,2017,2018,2019,2020]
[null,"Projetos sem financiamento",380,286,272,295,255]
[null,"Projetos com cooperação internacional ",1,"-",2,"-",1]
[null,"Projetos com financiamento",14,9,39,9,44]
[]
[]
[null,"Quadro - Quantidade de projetos de pesquisa em execução e finalizados"]
[null,"Categoria ",2016,2017,2018,2019,2020]
[null,"Projetos em execução",380,286,272,295,300]
[null,"Projetos finalizados",69,98,83,47,71]
[null,"*quantidade referente aos projetos cadastrados até 12/2020"]
[]
[null,"Quadro - Volume de recursos por projetos individuais"]
[null,"Categoria ",2016,2017,2018,2019,2020]
[null,"Projetos individuais",746070,573827.5,2989487.32,83408.100000000006,15179146.199999999]
[]
[]
[null,"Fonte: Divisão de Pesquisa, janeiro 2021 "]

{"sheet":"Gráficos projetos ","index":5,"n_rows":28,"n_cols":15,"rows_kept":28,"cut":false,"hidden":false,"merged":[[4,1,4,14],[9,1,9,7],[9,9,9,15]]}
[]
[]
[]
[]
[null,"Indicadores da Pró-reitoria de Pesquisa, Pós-graduação e Inovação "]
[null,null,null,null,"Gráficos da evolução das quantidades/recursos de Projetos de Pesquisa"]
[null,null,null,null,null,null,null,null,null,null,null,null,null,null,"Página Inicial"]
[]
[]
[null,"Evolução da quantidade de projetos de pesquisa - por categoria e ano de cadastro",null,null,null,null,null,null,null,"Evolução da quantidade de projetos de pesquisa em execução e finalizados "]
[]
[]
[]
[]
[]
[]
[]
[]
[]
[]
[]
[]
[]
[]
[]
[]
[]
[null,"Evolução do volume de recursos captados por projetos individuais"]

{"sheet":"volume e producao qualificada","index":6,"n_rows":49,"n_cols":7,"rows_kept":49,"cut":false,"hidden":false,"merged":[[4,1,4,7],[5,1,5,7],[7,5,7,7],[8,1,8,4],[9,1,9,7],[31,1,32,1],[31,2,31,6],[44,2,44,6],[48,1,48,6],[10,1,10,7],[12,1,12,6],[13,1,14,1],[13,2,13,6],[29,1,30,6]]}
[]
[]
[]
[]
[null,"Indicadores da Pró-reitoria de Pesquisa, Pós-graduação e Inovação "]
[null,"Produção intelectual: Volume de Publicação qualificada"]
[]
[null,null,null,null,null,"Página Inicial"]
[]
[null,"Objetivo: Informar a quantidade de produção intelectual docente e publicações qualificadas em periódicos (JCR)"]
[]
[]
[null,"Quadro - Quantidade de produção intelectual docente em 2020 - por área de conhecimento (área de produção)"]
[null,"Unidades Universitárias","Quantidade "]
[null,null,"artigos publicados e aceitos em periódicos","livros"," capítulos de livro","patentes e registros","produto"]
[null,"Ciências Exatas e da Terra",10,"-",4,"-","-"]
[null,"Ciências Biológicas ",15,"-",4,"-","-"]
[null,"Engenharias",5,"-",1,"-","-"]
[null,"Ciências da Saúde",7,"-","-","-",1]
[null,"Ciências Agrárias",29,"-",9,"-","-"]
[null,"Ciências Sociais Aplicadas",1,2,1,"-","-"]
[null,"Ciências Humanas",24,5,12,"-","-"]
[null,"Linguística, Letras e Artes",21,6,16,"-","-"]
[null,"Outra",2,"-","-","-","-"]
[null,"Não informados",461,14,138,"-",2]
[null,"Total",{"$f":"SUM(C16:C25)","v":575},{"$f":"SUM(D16:D25)","v":27},{"$f":"SUM(E16:E25)","v":185},"-",{"$f":"SUM(G16:G25)","v":3}]
[]
[]
[]
[null,"Quadro - Quantidade de publicações docente em periódicos no ano de 2020 - por fator de impacto e área de conhecimento (área de produção)"]
[]
[null,"Áreas de conhecimento ","Fator de impacto (JCR 2019)"]
[null,null,0,"0,01-0,5","0,5-1,0","1,0-3,0","acima de 3,0"]
[null,"Ciências Exatas e da Terra",7,"-","-",1,2]
[null,"Ciências Biológicas ",7,"-","-",3,5]
[null,"Engenharias",5,"-","-","-","-"]
[null,"Ciências da Saúde",7,"-","-","-","-"]
[null,"Ciências Agrárias",22,"-","-",4,3]
[null,"Ciências Sociais Aplicadas",1,"-","-","-","-"]
[null,"Ciências Humanas",24,"-","-","-","-"]
[null,"Linguística, Letras e Artes",21,"-","-","-","-"]
[null,"Outra",1,"-","-",1,"-"]
[null,"Não informados",369,"-",12,49,31]
[null,"Total",{"$f":"SUM(C34:C43)","v":464},{"$f":"SUM(D34:D43)","v":0},{"$f":"SUM(E34:E43)","v":12},{"$f":"SUM(F34:F43)","v":58},{"$f":"SUM(G34:G43)","v":41}]
[null,"Total geral",{"$f":"SUM(C44:G44)","v":575}]
[null,"Fonte: Stela Experta (janeiro 2021)"]
[]
[]
[null,"OBS: As produções se referem a docentes com vínculo institucional com a UEMS, exceto: externo, exonerado, falecido e vacância (relatórios emitidos individualmente por área)"]

{"sheet":"grupos de pesquisa","index":7,"n_rows":27,"n_cols":8,"rows_kept":27,"cut":false,"hidden":false,"merged":[[4,1,4,7],[5,1,5,7],[7,5,7,7],[8,1,8,4],[9,1,9,7],[10,1,10,4],[11,1,11,6],[12,1,13,1],[12,2,12,3],[12,4,12,5],[12,6,12,7]]}
[]
[]
[]
[]
[null,"Indicadores da Pró-reitoria de Pesquisa, Pós-graduação e Inovação "]
[null,"Grupos de pesquisa na UEMS "]
[]
[null,null,null,null,null,"Página Inicial"]
[]
[null,"Objetivo: Indicar a quantidade de grupos de pesquisa cadastrados no diretório do CNPq, por grande área de conhecimento"]
[]
[null,"Quadro - Quantidade de grupos de pesquisa - por área de conhecimento "]
[null,"Áreas de Conhecimento",2018,null,2019,null,2020]
[null,null,"Certificados*","Em preenchimento ","Certificados*","Em preenchimento ","Certificados*","Em preenchimento "]
[null,"Ciências Exatas e da Terra",14,"-",14,1,9,1]
[null,"Ciências Biológicas ",7,"-",5,1,3,1]
[null,"Engenharias",1,"-",1,"-",2,"-"]
[null,"Ciências da Saúde",7,"-",5,3,6,1]
[null,"Ciências Agrárias",16,1,18,1,22,5]
[null,"Ciências Sociais Aplicadas",9,2,7,"-",13,1]
[null,"Ciências Humanas",25,"-",23,"-",22,5]
[null,"Linguística, Letras e Artes",15,4,18,4,17,5]
[null,"Total",{"$f":"SUM(C15:C22)","v":94},7,91,10,94,19]
[]
[null,"* certificados com ou sem atualização há mais de 12 meses "]
[]
[null,"Fonte: Diretório de grupos de pesquisa/CNPq"]

{"sheet":"bolsista produtividade","index":8,"n_rows":28,"n_cols":6,"rows_kept":28,"cut":false,"hidden":false,"merged":[[11,1,11,4],[12,1,12,6],[13,1,14,1],[13,2,13,5],[4,1,4,7],[5,1,5,7],[7,5,7,7],[8,1,8,4],[9,1,9,7]]}
[]
[]
[]
[]
[null,"Indicadores da Pró-reitoria de Pesquisa, Pós-graduação e Inovação "]
[null,"Bolsistas Produtividade em Pesquisa (PQ)"]
[]
[null,null,null,null,null,"Página Inicial"]
[]
[null,"Objetivo: Indicar o número de docentes contemplados com bolsa Produtividade em Pesquisa (PQ) do CNPq"]
[]
[]
[null,"Quadro - Quantidade de bolsistas Produtividade em Pesquisa "]
[null,"Áreas de Conhecimento","Ano de concessão"]
[null,null,2017,2018,2019,2020]
[null,"Ciências Exatas e da Terra",3,3,3,4]
[null,"Ciências Biológicas ",2,2,1,2]
[null,"Engenharias","-","-","-","-"]
[null,"Ciências da Saúde","-","-","-",1]
[null,"Ciências Agrárias",2,2,2,2]
[null,"Ciências Sociais Aplicadas","-","-","-","-"]
[null,"Ciências Humanas","-","-","-","-"]
[null,"Linguística, Letras e Artes","-","-","-","-"]
[null,"TOTAL",{"$f":"SUM(C16:C23)","v":7},{"$f":"SUM(D16:D23)","v":7},{"$f":"SUM(E16:E23)","v":6},9]
[]
[]
[]
[null,"Fonte: Divisão de Pesquisa/CNPq, janeiro 2021"]

{"sheet":"alunos em proj IC","index":9,"n_rows":40,"n_cols":8,"rows_kept":40,"cut":false,"hidden":false,"merged":[[18,1,18,6],[4,1,4,6],[5,1,5,6],[7,7,7,8],[9,1,9,5],[10,1,10,5],[12,1,12,5],[15,1,15,5]]}
[]
[]
[]
[]
[null,"Indicadores da Pró-reitoria de Pesquisa, Pós-graduação e Inovação "]
[null,"Participação de Alunos da Graduação em Projetos de Iniciação Científica"]
[null,null,null,null,null,null,null,"Histórico Geral IC"]
[null,null,null,null,null,null,null,"Página Inicial"]
[]
[]
[null,"Objetivo: Aferir o envolvimento do corpo discente da UEMS em projetos de IC."]
[]
[null,"Fórmula de Cálculo: IPAAtPq = TAB/TTAx100"]
[]
[null,"TAB = n° total de alunos bolsistas (PIBIC CNPq/UEMS, PIBIT CNPq, PIBIC AAF) e IC sem bolsa "]
[null,"TTA = nº total de alunos de graduação matriculados na Unidade Universitária"]
[]
[]
[null,"Quadro - Percentual de envolvimento dos alunos da graduação em projetos de IC"]
[null,"Unidades Universitárias","2016 (%)","2017 (%)","2018(%)","2019*(%)","2020**(%)"]
[null,"Aquidauana",{"$f":"(67/628)*100","v":10.668789808917198},{"$f":"(59/632)*100","v":9.3354430379746827},{"$f":"(68/654)*100","v":10.397553516819572},{"$f":"(74/623)*100","v":11.878009630818621},{"$f":"64/586","v":0.10921501706484642}]
[null,"Amambai",{"$f":"(15/201)*100","v":7.4626865671641784},{"$f":"(4/213)*100","v":1.8779342723004695},{"$f":"(11/216)*100","v":5.0925925925925926},{"$f":"(8/212)*100","v":3.7735849056603774},{"$f":"6/208","v":2.8846153846153848E-2}]
[null,"Campo Grande",{"$f":"(45/1016)*100","v":4.4291338582677167},{"$f":"(59/1032)*100","v":5.717054263565891},{"$f":"(63/1180)*100","v":5.3389830508474576},{"$f":"(64/1250)*100","v":5.12},{"$f":"74/1324","v":5.5891238670694864E-2}]
[null,"Cassilândia",{"$f":"(49/369)*100","v":13.279132791327914},{"$f":"(32/402)*100","v":7.9601990049751246},{"$f":"(29/393)*100","v":7.3791348600508897},{"$f":"(43/384)*100","v":11.197916666666668},{"$f":"37/405","v":9.1358024691358022E-2}]
[null,"Coxim",{"$f":"(1/148)*100","v":0.67567567567567566},{"$f":"(1/166)*100","v":0.60240963855421692},"-",{"$f":"(3/124)*100","v":2.4193548387096775},{"$f":"1/74","v":1.3513513513513514E-2}]
[null,"Dourados",{"$f":"(123/1750)*100","v":7.0285714285714285},{"$f":"(108/1969)*100","v":5.4850177755205687},{"$f":"(105/1967)*100","v":5.3380782918149468},{"$f":"(116/1949)*100","v":5.9517701385325807},{"$f":"125/1921","v":6.5070275897969806E-2}]
[null,"Glória de Dourados",{"$f":"(1/108)*100","v":0.92592592592592582},{"$f":"(1/48)*100","v":2.083333333333333},{"$f":"(3/151)*100","v":1.9867549668874174},{"$f":"(2/88)*100","v":2.2727272727272729},2.56]
[null,"Ivinhema",{"$f":"(4/116)*100","v":3.4482758620689653},{"$f":"(3/116)*100","v":2.5862068965517242},{"$f":"(3/110)*100","v":2.7272727272727271},{"$f":"(2/82)*100","v":2.4390243902439024},{"$f":"7/78","v":8.9743589743589744E-2}]
[null,"Jardim ",{"$f":"(9/292)*100","v":3.0821917808219177},{"$f":"(7/300)*100","v":2.3333333333333335},{"$f":"(9/313)*100","v":2.8753993610223643},{"$f":"(7/306)*100","v":2.2875816993464051},{"$f":"4/275","v":1.4545454545454545E-2}]
[null,"Maracaju","-","-","-","-","-"]
[null,"Mundo Novo",{"$f":"(17/199)*100","v":8.5427135678391952},{"$f":"(17/218)*100","v":7.7981651376146797},{"$f":"(23/238)*100","v":9.6638655462184886},{"$f":"(23/203)*100","v":11.330049261083744},{"$f":"22/186","v":0.11827956989247312}]
[null,"Naviraí",{"$f":"(26/457)*100","v":5.6892778993435451},{"$f":"(26/471)*100","v":5.520169851380043},{"$f":"(31/484)*100","v":6.4049586776859497},{"$f":"(33/498)*100","v":6.6265060240963862},{"$f":"45/480","v":9.375E-2}]
[null,"Nova Andradina",{"$f":"(4/207)*100","v":1.932367149758454},{"$f":"(2/201)*100","v":0.99502487562189057},{"$f":"(5/202)*100","v":2.4752475247524752},{"$f":"(5/169)*100","v":2.9585798816568047},3.23]
[null,"Paranaíba",{"$f":"(26/673)*100","v":3.8632986627043091},{"$f":"(22/665)*100","v":3.3082706766917291},{"$f":"(22/661)*100","v":3.3282904689863844},{"$f":"(46/642)*100","v":7.1651090342679122},{"$f":"43/624","v":6.8910256410256415E-2}]
[null,"Ponta Porã",{"$f":"(9/453)*100","v":1.9867549668874174},{"$f":"(13/483)*100","v":2.691511387163561},{"$f":"(10/447)*100","v":2.2371364653243848},{"$f":"(6/437)*100","v":1.3729977116704806},{"$f":"1/385","v":2.5974025974025974E-3}]
[null,"Total",{"$f":"SUM(C21:C35)","v":73.014795945273832},{"$f":"SUM(D21:D35)","v":58.294073484581254},{"$f":"SUM(E21:E35)","v":65.245268050275655},{"$f":"SUM(F21:F35)","v":76.793211455480829},79.290000000000006]
[null,"*considerando o número de matriculados até 03/04/2019"]
[null,"**dados de 2020 matriculados até 05/08/2020"]
[]
[null,"Fonte: Divisão de Pesquisa, janeiro de 2021"]

{"sheet":"IC Sem bolsa","index":10,"n_rows":47,"n_cols":8,"rows_kept":47,"cut":false,"hidden":false,"merged":[[4,1,4,7],[5,1,5,6],[6,7,6,8],[7,7,7,8],[11,1,11,6],[34,1,35,1],[34,2,34,4],[34,7,34,9],[12,1,12,4],[13,1,14,1],[13,2,13,4],[13,7,13,9],[33,1,33,4]]}
[]
[]
[]
[]
[null,"Indicadores da Pró-reitoria de Pesquisa, Pós-graduação e Inovação "]
[null,"Detalhamento IC sem bolsa "]
[null,null,null,null,null,null,null,"Histórico Geral IC"]
[null,null,null,null,null,null,null,"Página Inicial"]
[]
[null,"Objetivo: Informar o número de alunos na graduação envolvidos com projetos de IC sem bolsa"]
[]
[]
[null,"Quadro - Quantitativo de alunos de graduação que participam da Modalidade IC sem bolsa - por Unidade Universitária "]
[null,"Unidades Universitárias",2020]
[null,null,"Execução","Cancelados","Finalizados"]
[null,"Aquidauana",13,1,4]
[null,"Amambai","-",1,1]
[null,"Campo Grande",16,2,8]
[null,"Cassilândia",1,1,1]
[null,"Coxim","-","-","-"]
[null,"Dourados",25,2,8]
[null,"Glória de Dourados","-","-","-"]
[null,"Ivinhema",5,1,"-"]
[null,"Jardim ",1,"-",1]
[null,"Maracaju","-","-","-"]
[null,"Mundo Novo",2,2,2]
[null,"Naviraí",9,"-",5]
[null,"Nova Andradina","-","-","-"]
[null,"Paranaíba",10,"-",4]
[null,"Ponta Porã",1,"-","-"]
[null,"Total ",{"$f":"SUM(C16:C30)","v":83},{"$f":"SUM(D16:D30)","v":10},{"$f":"SUM(E16:E30)","v":34}]
[]
[]
[null,"Quadro - Quantitativo de alunos que participam da Modalidade IC sem bolsa - por área de conhecimento"]
[null,"Áreas de conhecimento",2020]
[null,null,"Execução","Cancelados","Finalizados"]
[null,"Ciências Exatas e da Terra",6,"-",1]
[null,"Ciências Biológicas ",11,3,2]
[null,"Engenharias",7,"-","-"]
[null,"Ciências da Saúde",1,3,"-"]
[null,"Ciências Agrárias",19,2,8]
[null,"Ciências Sociais Aplicadas",15,1,10]
[null,"Ciências Humanas",14,1,5]
[null,"Linguística, Letras e Artes",10,"-",8]
[null,"Total",{"$f":"SUM(C37:C44)","v":83},{"$f":"SUM(D37:D44)","v":10},{"$f":"SUM(E37:E44)","v":34}]
[]
[null,"Fonte: Divisão de Pesquisa, janeiro 2021"]

{"sheet":"Demanda IC 2020","index":11,"n_rows":39,"n_cols":11,"rows_kept":39,"cut":false,"hidden":false,"merged":[[5,1,5,9],[6,1,6,9],[8,9,8,10],[19,1,19,9],[20,1,22,1],[20,2,20,4],[20,5,20,7],[20,8,20,10],[21,2,21,4],[21,5,21,7],[21,8,21,10]]}
[]
[]
[]
[]
[]
[null,"Indicadores da Pró-reitoria de Pesquisa, Pós-graduação e Inovação "]
[null,"Demanda por Bolsas de Iniciação Científica "]
[]
[null,null,null,null,null,null,null,null,null,"Página Inicial"]
[]
[]
[null,"Objetivo: Informar a demanda, as concessões de bolsas de iniciação científica e a relação entre elas"]
[]
[null,"Relação bolsa/demanda",null,"PIBIC CNPq/UEMS",null,{"$f":"309/404","v":0.76485148514851486}]
[null,null,null,"PIBITI CNPq",null,{"$f":"9/19","v":0.47368421052631576}]
[null,null,null,"PIBIC AAF",null,{"$f":"16/31","v":0.5161290322580645}]
[]
[]
[]
[null,"Quadro - Demonstra as demandas e as concessões de bolsas de iniciação científica por modalidade"]
[null,"Áreas de Conhecimento","2020/21",null,null,"2020/21",null,null,"2020/21"]
[null,null,"PIBIC CNPq/UEMS",null,null,"PIBIT CNPq",null,null,"PIBIC AAF"]
[null,null,"Inscritos","Demanda qualificada*","Bolsas implantadas**","Inscritos","Demanda qualificada*","Bolsas implantadas","Inscritos","Demanda qualificada*","Bolsas implantadas"]
[null,"Ciências Exatas e da Terra",55,51,40,5,5,2,3,2,1]
[null,"Ciências Biológicas ",30,27,21,"-","-","-",2,2,1]
[null,"Engenharias",22,17,13,1,1,1,2,2,1]
[null,"Ciências da Saúde",51,45,34,2,2,1,3,3,1]
[null,"Ciências Agrárias",129,124,94,10,10,4,7,7,3]
[null,"Ciências Sociais Aplicadas",52,46,36,"-","-",1,10,9,5]
[null,"Ciências Humanas",66,64,49,1,1,"-",6,5,3]
[null,"Linguística, Letras e Artes",35,30,23,"-","-","-",1,1,1]
[null,"Total",440,{"$f":"SUM(D24:D31)","v":404},{"$f":"SUM(E24:E31)","v":310},19,19,{"$f":"SUM(H24:H31)","v":9},{"$f":"SUM(I24:I31)","v":34},{"$f":"SUM(J24:J31)","v":31},{"$f":"SUM(K24:K31)","v":16}]
[]
[null,"*Demanda qualificada se refere a projetos aprovados, aptos a concorrem às bolsas"]
[null,"**Houve um empréstimo de 1 bolsa da PROEC para PIBIC/UEMS "]
[null,"OBS: Período compreendido da bolsa: 1 de agosto a 31 julho do ano posterior"]
[]
[]
[null,"Fonte: Divisão de Pesquisa, janeiro 2021"]

{"sheet":"Bolsas IC 2020","index":12,"n_rows":75,"n_cols":13,"rows_kept":75,"cut":false,"hidden":false,"merged":[[4,1,4,10],[5,1,5,10],[5,11,5,12],[7,11,7,12],[8,1,8,6],[9,1,9,12],[11,1,11,7],[11,9,12,12],[13,1,14,5],[13,9,14,9],[13,10,14,10],[13,11,13,12],[15,1,16,1],[15,2,15,3],[15,4,15,5],[15,9,16,9],[17,9,19,9],[20,9,28,9],[29,9,31,9],[32,9,33,9],[34,9,49,9],[35,1,36,5],[37,1,38,1],[37,2,37,3],[37,4,37,5],[50,9,51,9],[52,9,53,9],[54,9,55,9],[56,9,57,9],[58,9,59,9],[60,9,62,9],[63,9,64,9],[65,9,68,9],[69,9,71,9],[72,9,72,10]]}
[]
[]
[]
[]
[null,"Indicadores da Pró-reitoria de Pesquisa, Pós-graduação e Inovação "]
[null,"Bolsas de IC disponibilizadas aos alunos de graduação",null,null,null,null,null,null,null,null,null,"Histórico Geral IC"]
[]
[null,null,null,null,null,null,null,null,null,null,null,"Página Inicial"]
[]
[null,"Objetivo: Informar o número de alunos da graduação bolsistas (PIBIC CNPq/UEMS, PIBITI CNPq e PIBIC AAF)"]
[]
[null,"Número absoluto",null,null,null,null,null,null,null,"Quadro - Quantitativo de bolsas de IC disponibilizadas aos alunos de graduação - por Curso "]
[]
[null,"Quadro - Quantitativo de bolsas de IC disponibilizadas aos alunos de graduação - por Unidade Universitária ",null,null,null,null,null,null,null,"Unidade Universitária ","Curso/Graduação","ago/2020 a jul//21"]
[null,null,null,null,null,null,null,null,null,null,null,"Aprovadas","Canceladas"]
[null,"Unidade Universitária","ago/2019 a jul/20 ",null,"ago/2020 a jul/21 ",null,null,null,null,"AMAMBAI","Ciências Sociais",2,"-"]
[null,null,"Aprovadas","Canceladas","Aprovadas","Canceladas",null,null,null,null,"História",2,"-"]
[null,"Aquidauana",54,"-",51,"-",null,null,null,"AQUIDAUANA","Agronomia",21,"-"]
[null,"Amambai",3,1,4,"-",null,null,null,null,"Engenharia Florestal",6,"-"]
[null,"Campo Grande",46,1,56,"-",null,null,null,null,"Zootecnia",24,"-"]
[null,"Cassilândia",39,"-",36,"-",null,null,null,"CAMPO GRANDE\n","Artes Cênicas",9,"-"]
[null,"Coxim",3,"-",1,"-",null,null,null,null,"Geografia",21,"-"]
[null,"Dourados",99,3,97,1,null,null,null,null,"Geografia Licenciatura","-","-"]
[null,"Glória de Dourados",2,"-","-","-",null,null,null,null,"Letras Bacharel",1,"-"]
[null,"Ivinhema","-","-",2,"-",null,null,null,null,"Letras Port./Inglês",3,"-"]
[null,"Jardim ",3,"-",2,"-",null,null,null,null,"Letras Port./Esp.",1,"-"]
[null,"Maracaju","-","-","-","-",null,null,null,null,"Medicina",17,"-"]
[null,"Mundo Novo",16,"-",19,"-",null,null,null,null,"Pedagogia",3,"-"]
[null,"Naviraí",27,1,32,"-",null,null,null,null,"Turismo",1,"-"]
[null,"Nova Andradina",4,"-","-","-",null,null,null,"CASSILÂNDIA","Agronomia",35,"-"]
[null,"Paranaíba",33,4,35,"-",null,null,null,null,"Letras ","-","-"]
[null,"Ponta Porã",6,"-","-","-",null,null,null,null,"Matemática",1,"-"]
[null,"Total",{"$f":"SUM(C18:C32)","v":335},{"$f":"SUM(D18:D32)","v":10},{"$f":"SUM(E18:E32)","v":335},1,null,null,null,"COXIM","Ciências Biológicas",0,"-"]
[null,null,null,null,null,null,null,null,null,null,"Gestão Ambiental",1,"-"]
[null,null,null,null,null,null,null,null,null,"DOURADOS","Ciências da Computação",1,"-"]
[null,"Quadro - Quantitativo de bolsas de IC disponibilizadas aos alunos de graduação - por área do conhecimento ",null,null,null,null,null,null,null,null,"Ciências Biológicas Bacharelado",8,"-"]
[null,null,null,null,null,null,null,null,null,null,"Ciências Biológicas Licenciatura","-","-"]
[null,"Áreas de Conhecimento","ago/2019 a jul//20 ",null,"ago/2020 a jul//2021 ",null,null,null,null,null,"Direito",5,"-"]
[null,null,"Aprovadas","Canceladas","Aprovadas","Canceladas",null,null,null,null,"Enfermagem",26,"-"]
[null,"Ciências Exatas e da Terra",43,1,43,"-",null,null,null,null,"Engenharia Ambiental e Sanitária",12,"-"]
[null,"Ciências Biológicas ",19,"-",22,"-",null,null,null,null,"Engenharia Física",12,"-"]
[null,"Engenharias",18,"-",15,"-",null,null,null,null,"Física","-","-"]
[null,"Ciências da Saúde",44,"-",36,"-",null,null,null,null,"Letras Port./Inglês",4,"-"]
[null,"Ciências Agrárias",108,"-",101,"-",null,null,null,null,"Letras  Port./ Espanhol",6,"-"]
[null,"Ciências Sociais Aplicadas",43,7,42,1,null,null,null,null,"Matemática",2,"-"]
[null,"Ciências Humanas",25,2,52,"-",null,null,null,null,"Pedagogia",9,"-"]
[null,"Linguística, Letras e Artes",35,"-",24,"-",null,null,null,null,"Química Licenciatura","-","-"]
[null,"Total",{"$f":"SUM(C40:C47)","v":335},{"$f":"SUM(D40:D47)","v":10},{"$f":"SUM(E40:E47)","v":335},1,null,null,null,null,"Química Industrial",7,"-"]
[null,null,null,null,null,null,null,null,null,null,"Sistema de Informação",1,1]
[null,null,null,null,null,null,null,null,null,null,"Turismo",4,"-"]
[null,"Fonte: Divisão de Pesquisa, janeiro 2021",null,null,null,null,null,null,null,"GLÓRIA DE DOURADOS","Produção Sucroalcooleira","-","-"]
[null,null,null,null,null,null,null,null,null,null,"Tecnologia em Agroecologia","-","-"]
[null,null,null,null,null,null,null,null,null,"IVINHEMA","Ciências Biológicas Bacharelado",2,"-"]
[null,null,null,null,null,null,null,null,null,null,"Ciências Biológicas Licenciatura","-","-"]
[null,null,null,null,null,null,null,null,null,"JARDIM","Geografia Licenciatura",1,"-"]
[null,null,null,null,null,null,null,null,null,null,"Letras Port./Inglês",1,"-"]
[null,null,null,null,null,null,null,null,null,"MARACAJU","Administração","-","-"]
[null,null,null,null,null,null,null,null,null,null,"Pedagogia","-","-"]
[null,null,null,null,null,null,null,null,null,"MUNDO NOVO","Ciências Biológicas Licenciatura",16,"-"]
[null,null,null,null,null,null,null,null,null,null,"Tecnologia Gestão Ambiental",3,"-"]
[null,null,null,null,null,null,null,null,null,"NAVIRAÍ","Química",14]
[null,null,null,null,null,null,null,null,null,null,"Engenharia De Alimentos",11,"-"]
[null,null,null,null,null,null,null,null,null,null,"Direito",7,"-"]
[null,null,null,null,null,null,null,null,null,"NOVA ANDRADINA","Matemática","-","-"]
[null,null,null,null,null,null,null,null,null,null,"Computação","-","-"]
[null,null,null,null,null,null,null,null,null,"PARANAÍBA","Ciências Sociais",8,"-"]
[null,null,null,null,null,null,null,null,null,null,"Ciências Sociais Licenciatura","-","-"]
[null,null,null,null,null,null,null,null,null,null,"Direito",23,"-"]
[null,null,null,null,null,null,null,null,null,null,"Pedagogia",4,"-"]
[null,null,null,null,null,null,null,null,null,"PONTA PORÃ","Administração de Empresas","-","-"]
[null,null,null,null,null,null,null,null,null,null,"Ciências Contábeis","-","-"]
[null,null,null,null,null,null,null,null,null,null,"Ciências Econômica","-","-"]
[null,null,null,null,null,null,null,null,null,"TOTAL",null,{"$f":"SUM(L16:L72)","v":335},1]
[]
[null,null,null,null,null,null,null,null,null,"Fonte: Divisão de Pesquisa, janeiro 2021"]

{"sheet":"Bolsistas por UU","index":13,"n_rows":52,"n_cols":12,"rows_kept":52,"cut":false,"hidden":false,"merged":[[5,1,5,12],[6,1,6,12],[7,10,7,12],[10,1,10,11],[12,1,12,7],[17,1,17,8],[18,1,19,1],[18,2,19,2],[18,3,19,3],[18,4,19,4],[18,5,18,6],[18,7,18,8],[18,9,18,10],[39,1,40,1],[39,2,40,2],[39,3,40,3],[39,4,40,4],[39,5,39,6],[39,7,39,8],[39,9,39,10],[38,1,38,10]]}
[]
[]
[]
[]
[]
[null,"Indicadores da Pró-reitoria de Pesquisa, Pós-graduação e Inovação "]
[null,"Percentual de bolsistas de IC por Unidade Universitária"]
[null,null,null,null,null,null,null,null,null,null,"Histórico Geral IC"]
[null,null,null,null,null,null,null,null,null,null,null,"Página Inicial"]
[]
[null,"Objetivo: Indicar o percentual de bolsistas IC por Unidade Universitária em relação a quantidade total de bolsistas IC da UEMS "]
[]
[null,"Fórmula de Cálculo: Pbu= NBU/NTB *100"]
[null,"NBU: Número de bolsistas IC (PIBIC CNPq/UEMS, PIBIT CNPq, PIBIC AAF) por Unidade Universitária"]
[null,"NTB: número total de bolsistas IC na UEMS"]
[]
[]
[null,"Quadro - Percentual de bolsistas IC na Unidade Universitária em relação ao total de bolsistas IC na UEMS"]
[null,"Unidade Universitária",2016,2017,"2017/18*","ago/2018 a jul/19 ",null,"ago/2019 a jul//20 ",null,"ago/2020 a jul/21 "]
[null,null,null,null,null,"Aprovadas","Canceladas","Aprovadas","Canceladas","Aprovadas","Canceladas"]
[null,"Aquidauana",19.601328903654501,18.241042345276899,19.528619528619501,15.223880597014899,0.59701492537313405,16.119402985074601,"-",15.43,"-"]
[null,"Amambai",1.3289036544850501,0.65146579804560301,0.336700336700337,1.7910447761193999,0.29850746268656703,0.89552238805970097,0.3,1.18,"-"]
[null,"Campo Grande",9.3023255813953494,14.9837133550489,17.171717171717201,16.417910447761201,2.3880597014925402,13.731343283582101,0.3,16.61,"-"]
[null,"Cassilândia",15.282392026578099,9.7719869706840399,9.76430976430977,10.746268656716399,0.29850746268656703,11.641791044776101,"-",10.68,"-"]
[null,"Coxim",0.33222591362126203,0.325732899022801,"-",0.29850746268656703,"-",0.89552238805970097,"-",0.28999999999999998,"-"]
[null,"Dourados",32.558139534883701,30.9446254071661,29.629629629629601,29.552238805970099,0.89552238805970097,29.552238805970099,0.9,28.78,0.28999999999999998]
[null,"Glória de Dourados",0.33222591362126203,0.325732899022801,0.336700336700337,"-","-",0.59701492537313405,"-","-","-"]
[null,"Ivinhema",0.66445182724252505,0.65146579804560301,0.673400673400673,0.59701492537313405,"-","-","-",0.59,"-"]
[null,"Jardim ",1.3289036544850501,"-","-",0.59701492537313405,"-",0.89552238805970097,"-",0.59,"-"]
[null,"Maracaju","-","-","-","-","-","-","-","-","-"]
[null,"Mundo Novo",3.6544850498338901,4.8859934853420199,4.7138047138047101,5.0746268656716396,0.29850746268656703,4.7761194029850804,0,5.63,"-"]
[null,"Naviraí",5.3156146179402004,7.4918566775244297,7.4074074074074101,7.76119402985075,0.59701492537313405,8.0597014925373092,0.3,9.49,"-"]
[null,"Nova Andradina",0.33222591362126203,0.65146579804560301,0.673400673400673,0.29850746268656703,"-",1.1940298507462701,"-","-","-"]
[null,"Paranaíba",6.9767441860465098,6.8403908794788304,6.3973063973063997,8.9552238805970106,1.1940298507462701,9.8507462686567209,1.2,10.68,"-"]
[null,"Ponta Porã",2.99003322259136,4.2345276872964197,3.3670033670033699,1.7910447761193999,"-",1.7910447761193999,"-","-","-"]
[null,"* Período compreendido da bolsa: 1 de agosto a 31 julho do ano posterior"]
[]
[]
[null,"Quadro – Percentual de bolsas de IC disponibilizadas aos alunos de graduação - por área do conhecimento "]
[null,"Áreas de conhecimento",2016,2017,"2017/18*","ago/2018 a jul/19 ",null,"ago/2019 a jul//20 ",null,"ago/2020 a jul/21 "]
[null,null,null,null,null,"Aprovadas","Canceladas","Aprovadas","Canceladas","Aprovadas","Canceladas"]
[null,"Ciências Exatas e da Terra",12.9568106312292,13.953488372093,14.478114478114501,15.223880597014899,0.89552238805970097,12.835820895522399,0.3,12.7,"-"]
[null,"Ciências Biológicas ",4.9833887043189398,4.9833887043189398,4.7138047138047101,5.3731343283582103,"-",5.6716417910447801,"-",6.8,"-"]
[null,"Engenharias",12.624584717608,8.6378737541528192,8.4175084175084205,5.9701492537313401,"-",5.3731343283582103,"-",4.4000000000000004,"-"]
[null,"Ciências da Saúde",6.9767441860465098,15.1515151515152,14.6179401993356,12.5373134328358,0.89552238805970097,13.134328358209,"-",10.6,"-"]
[null,"Ciências Agrárias",35.548172757475101,34.680134680134699,34.551495016611298,31.044776119403,0.89552238805970097,32.238805970149201,"-",29.9,"-"]
[null,"Ciências Sociais e Aplicadas",9.9667774086378706,10.7744107744108,12.624584717608,11.9402985074627,2.6865671641790998,12.835820895522399,2.1,12.7,0.28999999999999998]
[null,"Ciências Humanas",8.9700996677740896,7.4074074074074101,8.6378737541528192,8.9552238805970106,1.1940298507462701,7.4626865671641802,0.6,15.4,"-"]
[null,"Linguística, Letras e Artes",7.9734219269102997,4.3771043771043798,3.9867109634551499,8.0597014925373092,"-",10.4477611940299,"-",7.1,"-"]
[null,"* Período compreendido da bolsa: 1 de agosto a 31 julho do ano posterior"]
[]
[null,"Fonte: Divisão de Pesquisa, janeiro 2021"]

{"sheet":"Histórico IC","index":14,"n_rows":52,"n_cols":10,"rows_kept":52,"cut":false,"hidden":false,"merged":[[25,1,25,6],[37,1,37,9],[4,1,4,9],[5,1,5,9],[6,9,6,10],[7,9,7,10],[11,1,11,7]]}
[]
[]
[]
[]
[null,"Indicadores da Pró-reitoria de Pesquisa, Pós-graduação e Inovação "]
[null,"Resumo dos dados sobre Iniciação Científica "]
[null,null,null,null,null,null,null,null,null,"Gráficos "]
[null,null,null,null,null,null,null,null,null,"Página Inicial"]
[]
[null,"Objetivo: Apresentar a série histórica envolvendo a Iniciação Científica com e sem bolsa"]
[]
[null,"Quadro - Histórico de bolsas de IC disponibilizadas aos alunos de graduação - por área de conhecimento"]
[null,"Áreas de Conhecimento","2017/18","2018/19","2019/20","2020/21"]
[null,"Ciências Exatas e da Terra",43,48,43,43]
[null,"Ciências Biológicas ",15,18,19,22]
[null,"Engenharias",26,20,18,15]
[null,"Ciências da Saúde",44,41,44,36]
[null,"Ciências Agrárias",105,101,108,101]
[null,"Ciências Sociais Aplicadas",37,31,40,42]
[null,"Ciências Humanas",24,27,25,52]
[null,"Linguística, Letras e Artes",13,27,35,24]
[null,"Total",{"$f":"SUM(C14:C21)","v":307},335,335,{"$f":"SUM(F14:F21)","v":335}]
[null,"OBS: Período compreendido da bolsa: 1 de agosto a 31 julho do ano posterior"]
[]
[]
[null,"Quadro - Histórico de bolsas de Iniciação Científica  - por modalidade "]
[null,"Modalidade/Fonte","2017/2018","2018/2019","2019/2020","2020/21"]
[null,"PIBIC CNPq",60,60,60,60]
[null,"PIBIC UEMS*",220,250,251,251]
[null,"PIBITI CNPq",9,9,9,9]
[null,"PIBITI UEMS",2,"-","-","-"]
[null,"PIBIC AAF",16,16,16,15]
[null,"Total",{"$f":"SUM(C28:C32)","v":307},{"$f":"SUM(D28:D32)","v":335},{"$f":"SUM(E28:E32)","v":336},{"$f":"SUM(F28:F32)","v":335}]
[null,"OBS: Período compreendido da bolsa: 1 de agosto a 31 julho do ano posterior"]
[null,"*Empréstimo entre editais; 2020/2021 de 1 bolsa empréstimo da PROEC; 2017/2018 3 bolsas; 2019/2020 1 bolsa"]
[]
[]
[null,"Quadro - Histórico do quantitativo de alunos na Modalidade IC sem bolsa - por área de conhecimento"]
[null,"Áreas de conhecimento",2016,2017,2018,2019,2020]
[null,"Ciências Exatas e da Terra",11,11,17,8,6]
[null,"Ciências Biológicas ",6,3,7,6,11]
[null,"Engenharias",14,1,2,3,7]
[null,"Ciências da Saúde",4,2,3,5,1]
[null,"Ciências Agrárias",11,3,11,22,19]
[null,"Ciências Sociais Aplicadas",14,4,8,17,15]
[null,"Ciências Humanas",11,8,18,15,14]
[null,"Linguística, Letras e Artes",21,15,16,19,10]
[null,"Total",92,47,82,95,83]
[null,"OBS: IC modalidade sem bolsa em execução"]
[]
[]
[null,"Fonte: Divisão de Pesquisa, janeiro 2021"]

{"sheet":"Gráficos IC","index":15,"n_rows":29,"n_cols":17,"rows_kept":29,"cut":false,"hidden":false,"merged":[[4,1,4,17],[28,1,28,7]]}
[]
[]
[]
[]
[null,"Indicadores da Pró-reitoria de Pesquisa, Pós-graduação e Inovação "]
[null,null,null,null,null,null,"Gráficos da evolução das quantidades de IC"]
[null,null,null,null,null,null,null,null,null,null,null,null,null,null,null,null,"Página Inicial"]
[]
[]
[]
[null,"Evolução da quantidade de bolsas de IC disponibilizadas aos discentes - por área do conhecimento",null,null,null,null,null,null,null,null,null,"Evolução da quantidade de bolsas de IC por modalidade"]
[]
[]
[]
[]
[]
[]
[]
[]
[]
[]
[]
[]
[]
[]
[]
[]
[]
[null,"Evolução da quantidade de alunos na modalidade sem bolsa"]